fUST/lending_fUST_20260613
["ID","MTS","AMOUNT","RATE_DAILY","PERIOD"]
[424952583,1781339447000,-155.26248059,0.00023904,2]
[424952587,1781339447000,-536.89854397,0.00024044,2]
[424952586,1781339447000,-166.707,0.00023942,2]
[424952585,1781339447000,-151.718,0.00023942,2]
[424952582,1781339447000,-159.10844008,0.00023904,2]
[424952584,1781339447000,-1043.47,0.00023941,2]
[424952588,1781339447000,-200.39,0.000241,2]
[424952590,1781339447000,-1043.47,0.00024109,2]
[424952589,1781339447000,-165.75298848,0.000241,2]
[424952591,1781339447000,-10012.0,0.0002411,2]
[424952593,1781339447000,-330.0,0.00024164,7]
[424952595,1781339447000,-2213.745,0.00024242,2]
[424952596,1781339447000,-747.235,0.00024242,2]
[424952594,1781339447000,-3463.0,0.00024242,2]
[424952597,1781339447000,-190.172,0.00024242,2]
[424952598,1781339447000,-445.0,0.00024242,2]
[424952633,1781339447000,-171.68,0.00025461,7]
[424952644,1781339447000,-150.28,0.00025551,7]
[424952634,1781339447000,-382.32,0.00025479,2]
[424952669,1781339447000,-171.92070817,0.00025722,2]
[424952667,1781339447000,-533.46743413,0.00025722,2]
[424952671,1781339447000,-211.00492679,0.00025722,2]
[424952673,1781339447000,-159.41438313,0.00025731,2]
[424952670,1781339447000,-179.84805593,0.00025722,2]
[424952672,1781339447000,-258.71690132,0.00025731,2]
[424952674,1781339447000,-683.54918604,0.00025738,2]
[424952675,1781339447000,-636.43376031,0.00025738,2]
[424952676,1781339447000,-621.04992235,0.00025738,2]
[424952677,1781339447000,-887.22336948,0.00025738,2]
[424952678,1781339447000,-172.83086233,0.0002574,2]
[424952679,1781339447000,-387.28,0.00025741,3]
[424952680,1781339447000,-387.28,0.00025741,3]
[424952681,1781339447000,-4036.95687589,0.00025742,2]
[424952682,1781339447000,-150.28,0.00025751,7]
[424952683,1781339447000,-150.28,0.00025751,7]
[424952684,1781339447000,-160.27,0.00025751,7]
[424952685,1781339447000,-153.47,0.00025752,7]
[424952689,1781339447000,-150.28,0.00025801,7]
[424952687,1781339447000,-158.47,0.00025761,7]
[424952686,1781339447000,-382.32,0.00025753,2]
[424952688,1781339447000,-328.0,0.00025775,7]
[424952690,1781339447000,-150.28,0.00025801,7]
[424952692,1781339447000,-158.47,0.00025811,7]
[424952691,1781339447000,-153.47,0.00025802,7]
[424952693,1781339447000,-150.28,0.00025851,7]
[424952695,1781339447000,-153.47,0.00025852,7]
[424952694,1781339447000,-150.36,0.00025851,7]
[424952632,1781339447000,-158.47,0.00025461,7]
[424952668,1781339447000,-311.90220695,0.00025722,2]
[424952666,1781339447000,-158.47,0.00025711,7]
[424952696,1781339447000,-158.47,0.00025861,7]
[424952665,1781339447000,-153.47,0.00025702,7]
[424952664,1781339447000,-1043.47,0.00025701,2]
[424952637,1781339447000,-150.28,0.00025501,7]
[424952636,1781339447000,-150.28,0.00025501,7]
[424952638,1781339447000,-153.47,0.00025502,7]
[424952640,1781339447000,-158.47,0.00025511,7]
[424952639,1781339447000,-176.49,0.00025502,7]
[424952642,1781339447000,-172.75,0.00025551,7]
[424952641,1781339447000,-171.68,0.00025511,7]
[424952697,1781339447000,-198.342,0.00025896,2]
[424952643,1781339447000,-150.28,0.00025551,7]
[424952646,1781339447000,-176.49,0.00025552,7]
[424952645,1781339447000,-153.47,0.00025552,7]
[424952647,1781339447000,-158.47,0.00025561,7]
[424952649,1781339447000,-150.28,0.00025601,7]
[424952635,1781339447000,-172.73,0.00025501,7]
[424952648,1781339447000,-170.68,0.00025561,7]
[424952660,1781339447000,-539.25951418,0.00025693,2]
[424952663,1781339447000,-150.28,0.00025701,7]
[424952661,1781339447000,-189.88839493,0.00025699,2]
[424952662,1781339447000,-150.28,0.00025701,7]
[424952650,1781339447000,-150.28,0.00025601,7]
[424952657,1781339447000,-153.47,0.00025652,7]
[424952659,1781339447000,-158.47,0.00025661,7]
[424952654,1781339447000,-158.47,0.00025611,7]
[424952656,1781339447000,-150.28,0.00025651,7]
[424952653,1781339447000,-539.25951418,0.00025605,2]
[424952651,1781339447000,-153.47,0.00025602,7]
[424952655,1781339447000,-150.28,0.00025651,7]
[424952652,1781339447000,-176.51,0.00025602,7]
[424952658,1781339447000,-184.551948,0.00025659,2]
[424952741,1781339448000,-1043.47,0.00026409,2]
[424952740,1781339448000,-158.96824,0.00026409,2]
[424952739,1781339448000,-151.0,0.00026409,2]
[424952742,1781339448000,-150.28,0.00026451,7]
[424952737,1781339448000,-153.47,0.00026402,7]
[424952731,1781339448000,-153.47,0.00026302,7]
[424952735,1781339448000,-151.0,0.000264,17]
[424952734,1781339448000,-503.18360841,0.00026371,2]
[424952733,1781339448000,-153.47,0.00026352,7]
[424952732,1781339448000,-150.28,0.00026351,7]
[424952729,1781339448000,-150.28,0.00026301,7]
[424952736,1781339448000,-150.28,0.00026401,7]
[424952738,1781339448000,-151.0,0.00026409,2]
[424952750,1781339448000,-160.0,0.00026524,2]
[424952743,1781339448000,-153.47,0.00026452,7]
[424952745,1781339448000,-181.89314863,0.000265,2]
[424952747,1781339448000,-208.26735925,0.000265,2]
[424952748,1781339448000,-150.28,0.00026501,7]
[424952746,1781339448000,-157.050937,0.000265,2]
[424952749,1781339448000,-153.47,0.00026502,7]
[424952753,1781339448000,-160.0,0.00026524,2]
[424952754,1781339448000,-150.28,0.00026551,7]
[424952751,1781339448000,-769.38344291,0.00026524,2]
[424952752,1781339448000,-417.15472785,0.00026524,2]
[424952756,1781339448000,-382.32,0.00026575,2]
[424952730,1781339448000,-382.32,0.00026301,2]
[424952761,1781339448000,-954.65064046,0.00026703,2]
[424952744,1781339448000,-379.55058636,0.000265,2]
[424952727,1781339448000,-150.28,0.00026251,7]
[424952711,1781339448000,-150.28,0.00026051,7]
[424952725,1781339448000,-153.47,0.00026202,7]
[424952755,1781339448000,-153.56,0.00026552,7]
[424952698,1781339448000,-150.28,0.00025901,7]
[424952699,1781339448000,-153.47,0.00025902,7]
[424952702,1781339448000,-153.47,0.00025952,7]
[424952700,1781339448000,-158.47,0.00025911,7]
[424952701,1781339448000,-150.28,0.00025951,7]
[424952703,1781339448000,-539.25951418,0.00025954,2]
[424952704,1781339448000,-158.47,0.00025961,7]
[424952706,1781339448000,-150.28,0.00026001,7]
[424952705,1781339448000,-183.89969753,0.00026,120]
[424952708,1781339448000,-160.0,0.0002601,7]
[424952710,1781339448000,-382.32,0.00026027,2]
[424952709,1781339448000,-158.47,0.00026011,7]
[424952707,1781339448000,-153.47,0.00026002,7]
[424952712,1781339448000,-153.47,0.00026052,7]
[424952714,1781339448000,-150.28,0.00026101,7]
[424952716,1781339448000,-854.43648255,0.00026124,2]
[424952715,1781339448000,-153.47,0.00026102,7]
[424952713,1781339448000,-158.57,0.00026061,7]
[424952718,1781339448000,-776.31240293,0.00026124,2]
[424952719,1781339448000,-150.28,0.00026151,7]
[424952717,1781339448000,-795.54220039,0.00026124,2]
[424952720,1781339448000,-151.0,0.00026151,2]
[424952721,1781339448000,-151.0,0.00026151,2]
[424952722,1781339448000,-151.0,0.00026151,2]
[424952723,1781339448000,-153.47,0.00026152,7]
[424952726,1781339448000,-503.18360841,0.0002622,2]
[424952728,1781339448000,-153.47,0.00026252,7]
[424952760,1781339448000,-1025.32377906,0.00026703,2]
[424952724,1781339448000,-150.28,0.00026201,7]
[424952757,1781339448000,-150.28,0.00026601,7]
[424952796,1781339448000,-181.89314863,0.000273,2]
[424952794,1781339448000,-150.28,0.00027251,7]
[424952817,1781339448000,-1043.47,0.00027999,18]
[424952793,1781339448000,-1839.0,0.00027242,2]
[424952795,1781339448000,-379.55058636,0.000273,2]
[424952798,1781339448000,-150.28,0.00027351,7]
[424952797,1781339448000,-150.28,0.00027301,7]
[424952799,1781339448000,-328.0,0.00027386,7]
[424952800,1781339448000,-159.22577335,0.00027397,2]
[424952802,1781339448000,-150.28,0.00027401,15]
[424952801,1781339448000,-382.37,0.00027397,2]
[424952804,1781339448000,-150.28,0.00027501,15]
[424952803,1781339448000,-150.28,0.00027451,15]
[424952791,1781339448000,-186.0,0.00027242,2]
[424952805,1781339448000,-150.28,0.00027551,15]
[424952807,1781339448000,-379.55058636,0.000276,2]
[424952808,1781339448000,-151.0,0.000276,13]
[424952809,1781339448000,-150.28,0.00027601,15]
[424952810,1781339448000,-328.0,0.00027616,14]
[424952811,1781339448000,-150.67,0.00027651,15]
[424952812,1781339448000,-220.86297365,0.00027726,7]
[424952813,1781339448000,-1043.47,0.00027999,18]
[424952814,1781339448000,-1043.47,0.00027999,18]
[424952816,1781339448000,-1043.47,0.00027999,18]
[424952818,1781339448000,-1043.47,0.00027999,18]
[424952819,1781339448000,-1043.47,0.00027999,18]
[424952820,1781339448000,-1043.47,0.00027999,18]
[424952758,1781339448000,-150.28,0.00026651,7]
[424952806,1781339448000,-1086.83736411,0.00027572,2]
[424952792,1781339448000,-445.0,0.00027242,2]
[424952815,1781339448000,-1043.47,0.00027999,18]
[424952789,1781339448000,-2209.0,0.00027242,2]
[424952788,1781339448000,-3463.0,0.00027242,2]
[424952763,1781339448000,-150.28,0.00026751,7]
[424952764,1781339448000,-379.55058636,0.000268,2]
[424952762,1781339448000,-931.57488352,0.00026703,2]
[424952766,1781339448000,-151.0,0.000268,20]
[424952767,1781339448000,-150.28,0.00026801,7]
[424952765,1781339448000,-181.89314863,0.000268,2]
[424952759,1781339448000,-150.28,0.00026701,7]
[424952769,1781339448000,-150.28,0.00026851,7]
[424952768,1781339448000,-382.32,0.00026849,2]
[424952771,1781339448000,-720.0,0.00026938,30]
[424952770,1781339448000,-150.28,0.00026901,7]
[424952773,1781339448000,-150.28,0.00026951,7]
[424952774,1781339448000,-769.38344291,0.00027,3]
[424952772,1781339448000,-1043.47,0.00026941,2]
[424952775,1781339448000,-379.55058636,0.00027,2]
[424952790,1781339448000,-744.0,0.00027242,2]
[424952787,1781339448000,-150.28,0.00027201,7]
[424952785,1781339448000,-150.28,0.00027151,7]
[424952786,1781339448000,-151.0,0.000272,14]
[424952776,1781339448000,-181.89314863,0.00027,2]
[424952782,1781339448000,-774.56,0.00027111,3]
[424952784,1781339448000,-712.23695369,0.0002714,2]
[424952779,1781339448000,-150.28,0.00027101,7]
[424952777,1781339448000,-150.28,0.00027001,7]
[424952781,1781339448000,-774.56,0.00027111,3]
[424952780,1781339448000,-298.07470757,0.00027109,2]
[424952778,1781339448000,-150.28,0.00027051,7]
[424952783,1781339448000,-382.32,0.00027123,2]
[424952821,1781339449000,-1043.47,0.00027999,18]
[424952823,1781339449000,-1043.47,0.00027999,18]
[424952826,1781339449000,-160.0,0.00028,10]
[424952824,1781339449000,-1043.67026004,0.00027999,18]
[424952827,1781339449000,-160.0,0.00028,10]
[424952822,1781339449000,-1043.47,0.00027999,18]
[424952829,1781339449000,-769.38344291,0.00028,10]
[424952832,1781339449000,-22365.52691627,0.00028,2]
[424952831,1781339449000,-179317.74270829,0.00028,2]
[424952825,1781339449000,-159482.91843107,0.00028,2]
[424952828,1781339449000,-160.0,0.00028,10]
[424952830,1781339449000,-294968.63740128,0.00028,2]
[424952834,1781339551000,-5000.0,0.00019601,2]
[424952836,1781339568000,-343.76026201,0.00019799,2]
[424953082,1781340632000,-5000.0,0.00015937,2]
[424953086,1781340632000,-400.499995,0.00016098,2]
[424953084,1781340632000,-1772.0739723,0.00016098,2]
[424953090,1781340632000,-2827.4260327,0.00016098,2]
[424953092,1781340632000,-505.47727276,0.0001895,2]
[424953094,1781340632000,-343.76026201,0.00019799,2]
[424953101,1781340632000,-202.16467811,0.00023882,5]
[424953104,1781340632000,-797.83532189,0.00023882,5]
[424953107,1781340632000,-160.34,0.00024329,2]
[424953098,1781340632000,-152.0,0.00023624,7]
[424953095,1781340632000,-152.0,0.00023624,7]
[424953112,1781340633000,-160.34,0.00024429,2]
[424953109,1781340633000,-224.51,0.00024329,2]
[424953115,1781340633000,-224.51,0.00024429,2]
[424953121,1781340633000,-19.90698901,0.00024487,2]
[424953118,1781340633000,-1839.0,0.00024487,2]
[424953265,1781340638000,-160.34,0.00025529,2]
[424953259,1781340638000,-160.34,0.00025029,2]
[424953260,1781340638000,-160.34,0.00025129,2]
[424953264,1781340638000,-160.34,0.00025429,2]
[424953263,1781340638000,-251.6,0.00025429,7]
[424953258,1781340638000,-160.34,0.00024929,2]
[424953256,1781340638000,-160.34,0.00024729,2]
[424953257,1781340638000,-160.34,0.00024829,2]
[424953255,1781340638000,-160.34,0.00024629,2]
[424953253,1781340638000,-445.0,0.00024487,2]
[424953251,1781340638000,-3463.0,0.00024487,2]
[424953252,1781340638000,-2209.0,0.00024487,2]
[424953249,1781340638000,-292.27932664,0.00024487,2]
[424953250,1781340638000,-1104.81368435,0.00024487,2]
[424953254,1781340638000,-160.34,0.00024529,2]
[424953248,1781340638000,-420.31018788,0.00024242,2]
[424953266,1781340638000,-160.34,0.00025629,2]
[424953261,1781340638000,-160.34,0.00025229,2]
[424953272,1781340638000,-160.0,0.00026552,2]
[424953268,1781340638000,-175.85669693,0.00025699,2]
[424953262,1781340638000,-160.34,0.00025329,2]
[424953283,1781340638000,-3463.0,0.00027487,2]
[424953288,1781340638000,-94483.12825782,0.00027699,2]
[424953287,1781340638000,-152.0,0.00027633,7]
[424953284,1781340638000,-2209.0,0.00027487,2]
[424953285,1781340638000,-445.0,0.00027487,2]
[424953277,1781340638000,-205.57593305,0.0002716,2]
[424953273,1781340638000,-264.479,0.00027,15]
[424953286,1781340638000,-250.0,0.00027567,9]
[424953275,1781340638000,-164.0,0.00027,7]
[424953271,1781340638000,-769.38344291,0.00026552,2]
[424953281,1781340638000,-1839.0,0.00027487,2]
[424953269,1781340638000,-228.80786612,0.00025699,2]
[424953267,1781340638000,-188.87543298,0.00025699,2]
[424953270,1781340638000,-160.0,0.00025708,2]
[424953282,1781340638000,-1417.0,0.00027487,2]
[424953279,1781340638000,-169.833081,0.00027463,2]
[424953274,1781340638000,-160.0,0.00027,3]
[424953292,1781340639000,-3037.97932318,0.00027699,2]
[424953289,1781340639000,-30165.45556408,0.00027699,2]
[424953291,1781340639000,-15999.90457318,0.00027699,2]
[424953293,1781340639000,-543.59561786,0.00027699,2]
[424953290,1781340639000,-3865.16026762,0.00027699,2]
[424953356,1781340641000,-2120.24758729,0.00027699,2]
[424953363,1781340643000,-3506.80553173,0.00027699,2]
[424953362,1781340643000,-2140.0,0.00027699,2]
[424953371,1781340646000,-8274.93333856,0.00027699,2]
[424953386,1781341054000,4593.76073302,7.6e-05,2]
[424953474,1781341832000,-1134.51442417,0.00016495,2]
[424953479,1781341832000,-3865.48557583,0.00016495,2]
[424953484,1781341832000,-1839.0,0.00024487,2]
[424953481,1781341832000,-282.0,0.00024,2]
[424953482,1781341832000,-330.82,0.00024339,2]
[424953495,1781341832000,-1705.3069357,0.0002465,2]
[424953485,1781341832000,-1417.0,0.00024487,2]
[424953480,1781341832000,-545.12008707,0.00017,2]
[424953483,1781341832000,-300.0,0.00024486,2]
[424953489,1781341832000,-445.0,0.00024487,2]
[424953491,1781341832000,-190.172,0.00024487,2]
[424953488,1781341832000,-2209.0,0.00024487,2]
[424953493,1781341832000,-422.57197438,0.0002465,2]
[424953490,1781341832000,-367.828,0.00024487,2]
[424953492,1781341832000,-460.96818549,0.00024487,2]
[424953487,1781341832000,-3202.45984013,0.00024487,2]
[424953486,1781341832000,-260.54015987,0.00024487,2]
[424953632,1781341841000,-398.97496663,0.0002465,2]
[424953633,1781341841000,-343.33021481,0.0002465,2]
[424953635,1781341841000,-23787.47627268,0.00024842,2]
[424953658,1781341843000,-403.45087198,0.00024842,2]
[424953656,1781341843000,-291.28315977,0.00024403,2]
[424953808,1781343031000,-622.92878591,0.00023454,2]
[424953816,1781343031000,-2736.24691307,0.00023454,2]
[424953814,1781343031000,-365.25946926,0.00023454,2]
[424953819,1781343031000,-2209.0,0.00024171,2]
[424953827,1781343031000,-631.10614948,0.00024799,2]
[424953806,1781343031000,-356.1667011,0.00023454,2]
[424953818,1781343031000,-365.51,0.00024171,2]
[424953823,1781343031000,-186.0,0.00024171,2]
[424953825,1781343031000,-500.0,0.00024799,2]
[424953831,1781343031000,-2511.28143453,0.000248,7]
[424953821,1781343031000,-445.0,0.00024171,2]
[424953829,1781343031000,-1310.26469122,0.000248,7]
[424953920,1781343038000,-159.98,0.00025711,2]
[424953919,1781343038000,-159.6,0.00025711,2]
[424953913,1781343038000,-157.0,0.00025711,2]
[424953911,1781343038000,-156.0,0.00025711,2]
[424953910,1781343038000,-159.6,0.00025711,2]
[424953906,1781343038000,-210.36366841,0.00025709,2]
[424953907,1781343038000,-158.2,0.00025711,2]
[424953914,1781343038000,-159.88,0.00025711,2]
[424953908,1781343038000,-493.33333333,0.00025711,2]
[424953901,1781343038000,-246.66666667,0.00025326,2]
[424953903,1781343038000,-185.08,0.00025439,7]
[424953900,1781343038000,-507.01454159,0.00025273,2]
[424953904,1781343038000,-274.404,0.00025439,10]
[424953898,1781343038000,-1000.0,0.00024986,30]
[424953899,1781343038000,-186.575132,0.00025037,2]
[424953909,1781343038000,-159.0,0.00025711,2]
[424953897,1781343038000,-1172.3675507,0.00024948,2]
[424953895,1781343038000,-169.790678,0.00024865,2]
[424953896,1781343038000,-166.1739,0.00024909,2]
[424953893,1781343038000,-9337.97140286,0.000248,7]
[424953894,1781343038000,-160.0,0.000248,7]
[424953902,1781343038000,-514.76152554,0.00025438,2]
[424953918,1781343038000,-159.0,0.00025711,2]
[424953905,1781343038000,-448.91029941,0.00025709,2]
[424953922,1781343038000,-159.0624,0.00025711,2]
[424953940,1781343038000,-215.40128953,0.00027096,2]
[424953939,1781343038000,-500.0,0.00027096,2]
[424953938,1781343038000,-220.28,0.00027087,3]
[424953929,1781343038000,-234.98083398,0.00025716,2]
[424953930,1781343038000,-150.3,0.00025716,30]
[424953928,1781343038000,-220.43871925,0.00025711,2]
[424953931,1781343038000,-150.12,0.00025716,120]
[424953932,1781343038000,-160.0,0.00026584,2]
[424953937,1781343038000,-341.8787115,0.00027025,2]
[424953934,1781343038000,-500.0,0.00027025,2]
[424953933,1781343038000,-506.6399406,0.00027021,2]
[424953941,1781343038000,-243074.68630763,0.00027097,2]
[424953936,1781343038000,-500.0,0.00027025,2]
[424953926,1781343038000,-159.6,0.00025711,2]
[424953923,1781343038000,-159.6,0.00025711,2]
[424953917,1781343038000,-189.024,0.00025711,2]
[424953921,1781343038000,-159.0,0.00025711,2]
[424953916,1781343038000,-159.9,0.00025711,2]
[424953912,1781343038000,-159.6,0.00025711,2]
[424953925,1781343038000,-159.6,0.00025711,2]
[424953915,1781343038000,-159.6,0.00025711,2]
[424953935,1781343038000,-500.0,0.00027025,2]
[424953924,1781343038000,-211.9532,0.00025711,2]
[424953927,1781343038000,-159.6,0.00025711,2]
[424953949,1781343040000,-2774.967945,0.00027097,2]
[424953960,1781343043000,-2225.032055,0.00025611,2]
[424953968,1781343046000,-1909.68484534,0.00025611,2]
[424953969,1781343046000,-4134.71690032,0.00027026,2]
[424953970,1781343046000,-10957.33446684,0.00027097,2]
[424954022,1781344232000,-2022.66024682,0.00026,2]
[424954018,1781344232000,-186.575132,0.00024498,2]
[424954004,1781344232000,-5000.0,0.00023959,2]
[424954020,1781344232000,-201.39,0.00025446,7]
[424954019,1781344232000,-1000.0,0.00024605,30]
[424954016,1781344232000,-359.82,0.00024347,2]
[424954005,1781344232000,-666.75600583,0.00024201,2]
[424954009,1781344232000,-1417.0,0.00024201,2]
[424954011,1781344232000,-445.0,0.00024201,2]
[424954007,1781344232000,-1172.24399417,0.00024201,2]
[424954014,1781344232000,-281.92847457,0.00024222,6]
[424954013,1781344232000,-186.0,0.00024201,2]
[424954021,1781344232000,-483.9672823,0.00025497,6]
[424954040,1781344240000,-1235.05403577,0.00026,2]
[424954041,1781344240000,-366.71178948,0.00026,2]
[424954059,1781344243000,-390.66495456,0.00026497,2]
[424954058,1781344243000,-118.10440702,0.00026497,2]
[424954057,1781344243000,-1121.57392793,0.00026,2]
[424954066,1781344246000,-2676.17732555,0.00026497,2]
[424954068,1781344246000,-730.80546649,0.00026596,2]
[424954069,1781344246000,-730.80546649,0.00026596,2]
[424954067,1781344246000,-556.714131,0.00026596,2]
[424954071,1781344246000,-730.80546649,0.00026596,2]
[424954074,1781344246000,-730.80546649,0.00026596,2]
[424954075,1781344246000,-730.80546649,0.00026596,2]
[424954073,1781344246000,-730.80546649,0.00026596,2]
[424954078,1781344246000,-730.80546649,0.00026596,2]
[424954076,1781344246000,-730.80546649,0.00026596,2]
[424954070,1781344246000,-730.80546649,0.00026596,2]
[424954082,1781344246000,-500.0,0.00026596,2]
[424954079,1781344246000,-730.80546649,0.00026596,2]
[424954080,1781344246000,-308.51605213,0.00026596,2]
[424954081,1781344246000,-400.0,0.00026596,2]
[424954083,1781344246000,-481.60077729,0.00026596,2]
[424954077,1781344246000,-730.80546649,0.00026596,2]
[424954087,1781344246000,-730.80546649,0.00026596,2]
[424954085,1781344246000,-730.80546649,0.00026596,2]
[424954084,1781344246000,-730.80546649,0.00026596,2]
[424954088,1781344246000,-287621.76695342,0.00026597,2]
[424954086,1781344246000,-730.80546649,0.00026596,2]
[424954072,1781344246000,-730.80546649,0.00026596,2]
[424954089,1781344359000,14039.82723972,0.00015,60]
[424954106,1781344985000,8406.23926698,0.0001,2]
[424954107,1781344985000,206.27713712,0.0001,2]
[424954108,1781345073000,853.50037564,0.0001,2]
[424954120,1781345432000,-3397.4199651,0.00021805,2]
[424954121,1781345432000,-258.62107899,0.00021805,2]
[424954135,1781345438000,-280.37510561,0.00025266,2]
[424954125,1781345438000,-1343.95895591,0.00021805,2]
[424954127,1781345438000,-445.0,0.00022684,2]
[424954126,1781345438000,-1444.79246762,0.00022247,2]
[424954129,1781345438000,-163.32865614,0.00024003,2]
[424954128,1781345438000,-186.0,0.00022684,2]
[424954132,1781345438000,-565.80113208,0.00024201,2]
[424954130,1781345438000,-293.99158105,0.00024003,2]
[424954131,1781345438000,-522.12904794,0.00024003,2]
[424954133,1781345438000,-919.01086792,0.00024201,2]
[424954143,1781345438000,-152.0,0.00025452,7]
[424954137,1781345438000,-504.6751901,0.00025266,2]
[424954141,1781345438000,-194.13756271,0.00025306,6]
[424954151,1781345438000,-355.40791833,0.00026035,2]
[424954139,1781345438000,-896.30313762,0.00025266,2]
[424954144,1781345438000,-188.02255833,0.00025684,2]
[424954145,1781345438000,-256.97744167,0.00025684,2]
[424954142,1781345438000,-152.0,0.00025452,7]
[424954146,1781345438000,-186.0,0.00025684,2]
[424954147,1781345438000,-167.76454351,0.00025728,2]
[424954149,1781345438000,-163.27703122,0.00025734,2]
[424954148,1781345438000,-300.80147684,0.00025728,2]
[424954150,1781345438000,-264.5596509,0.00025803,2]
[424954152,1781345438000,-492.64230953,0.00026194,5]
[424954140,1781345438000,-271.30846321,0.00025306,6]
[424954158,1781345440000,-1451.4124612,0.00026466,6]
[424954157,1781345440000,-507.35769047,0.00026194,5]
[424954161,1781345440000,-333.96681118,0.00026596,2]
[424954160,1781345440000,-284.91895711,0.00026596,2]
[424954159,1781345440000,-158.2883095,0.00026596,2]
[424954182,1781345443000,-2786.82835123,0.00027313,2]
[424954200,1781345443000,-500.0,0.00027626,2]
[424954197,1781345443000,-500.0,0.00027626,2]
[424954195,1781345443000,-500.0,0.00027626,2]
[424954194,1781345443000,-292.365,0.00027414,16]
[424954193,1781345443000,-769.38344291,0.00027413,2]
[424954196,1781345443000,-500.0,0.00027626,2]
[424954191,1781345443000,-1000.0,0.00027397,30]
[424954188,1781345443000,-335.05943751,0.00027352,2]
[424954186,1781345443000,-500.0,0.00027352,2]
[424954187,1781345443000,-248.96083718,0.00027352,2]
[424954185,1781345443000,-500.0,0.00027352,2]
[424954184,1781345443000,-500.0,0.00027352,2]
[424954171,1781345443000,-317.14152039,0.00026596,2]
[424954183,1781345443000,-500.0,0.00027352,2]
[424954181,1781345443000,-181.29873046,0.00027284,6]
[424954178,1781345443000,-160.0,0.00026748,3]
[424954190,1781345443000,-160.0,0.00027397,2]
[424954189,1781345443000,-151.5,0.00027352,2]
[424954179,1781345443000,-164.0,0.00027,7]
[424954177,1781345443000,-5000.0,0.00026626,2]
[424954199,1781345443000,-500.0,0.00027626,2]
[424954172,1781345443000,-506.01606782,0.00026596,2]
[424954170,1781345443000,-131.39664284,0.00026596,2]
[424954176,1781345443000,-2751.22520751,0.00026616,2]
[424954175,1781345443000,-362.08500442,0.00026609,2]
[424954174,1781345443000,-157.19821655,0.00026597,3]
[424954173,1781345443000,-376.38,0.00026596,2]
[424954180,1781345443000,-153.72882096,0.00027097,2]
[424954202,1781345443000,-500.0,0.00027626,2]
[424954192,1781345443000,-160.0,0.00027413,2]
[424954198,1781345443000,-356.69570335,0.00027626,2]
[424954234,1781345443000,-622.1303663,0.00027898,2]
[424954232,1781345443000,-151.0,0.00027883,2]
[424954233,1781345443000,-273.19413201,0.00027883,2]
[424954230,1781345443000,-5853.0133716,0.000278,2]
[424954224,1781345443000,-248.39558965,0.00027799,2]
[424954222,1781345443000,-837.65421723,0.00027766,2]
[424954220,1781345443000,-386.41,0.00027666,9]
[424954201,1781345443000,-500.0,0.00027626,2]
[424954227,1781345443000,-4146.9866284,0.000278,2]
[424954223,1781345443000,-1116.48824948,0.00027799,2]
[424954219,1781345443000,-250.0,0.00027666,9]
[424954221,1781345443000,-205.57593305,0.00027699,2]
[424954217,1781345443000,-134.68026558,0.00027626,2]
[424954218,1781345443000,-224.53921465,0.00027626,2]
[424954225,1781345443000,-186.53895577,0.000278,2]
[424954215,1781345443000,-500.0,0.00027626,2]
[424954216,1781345443000,-500.0,0.00027626,2]
[424954203,1781345443000,-500.0,0.00027626,2]
[424954204,1781345443000,-316.67979508,0.00027626,2]
[424954205,1781345443000,-151.5,0.00027626,2]